fUSD/lending_fUSD_20251025
["ID","MTS","AMOUNT","RATE_DAILY","PERIOD"]
[392375762,1761407563719,-380.00362792,0.005,112]
[392375763,1761407563728,-331.04058691,0.005,120]
[392375764,1761407563738,-709.16325542,0.005,120]
[392375765,1761407563747,-11469.92224098,0.005,120]
[392375766,1761407563757,-944.44444444,0.00503167,120]
[392375767,1761407563766,-1639.951101,0.0051,120]
[392375768,1761407563776,-944.44444444,0.005106,120]
[392375769,1761407563785,-944.44444444,0.00518033,120]
[392375770,1761407563795,-2000.0,0.0052,120]
[392375771,1761407563804,-10000.0,0.0052,120]
[392375772,1761407563814,-944.44444444,0.00525467,120]
[392375773,1761407563824,-944.44444444,0.005329,120]
[392375774,1761407563833,-964.78,0.00534,120]
[392375775,1761407563843,-153.0,0.00538,120]
[392375776,1761407563853,-2000.0,0.0054,120]
[392375777,1761407563862,-2083.40819606,0.0054,60]
[392375778,1761407563871,-944.44444444,0.00540333,120]
[392375779,1761407563880,-3000.0,0.00543,120]
[392375780,1761407563890,-2000.0,0.005438,120]
[392375781,1761407563900,-4000.0,0.005444,55]
[392375782,1761407563910,-1000.0,0.00545205,120]
[392375783,1761407563921,-1000.0,0.00545205,120]
[392375784,1761407563931,-1000.0,0.00545205,120]
[392375785,1761407563941,-1000.0,0.00545205,120]
[392375786,1761407563951,-1000.0,0.00545205,120]
[392375787,1761407563960,-1000.0,0.00545205,120]
[392375788,1761407563970,-1000.0,0.00545205,120]
[392375789,1761407563981,-1000.0,0.00545205,120]
[392375790,1761407563991,-1000.0,0.00545205,120]
[392375791,1761407564002,-1000.0,0.00545205,120]
[392375792,1761407564011,-1000.0,0.00545205,120]
[392375793,1761407564023,-1000.0,0.00545205,120]
[392375794,1761407564032,-1000.0,0.00545205,120]
[392375795,1761407564041,-1000.0,0.00545205,120]
[392375796,1761407564051,-1000.0,0.00545205,120]
[392375797,1761407564061,-1000.0,0.00545205,120]
[392375798,1761407564071,-198.58527921,0.00545205,120]
[392375799,1761407564081,-1500.0,0.00547279,120]
[392375800,1761407564090,-944.44444444,0.00547767,120]
[392375801,1761407564100,-10000.0,0.00547945,120]
[392375802,1761407564110,-500.0,0.00547945,120]
[392375803,1761407564120,-500.0,0.00547945,120]
[392375804,1761407564130,-500.0,0.00547945,120]
[392375805,1761407564141,-500.0,0.00547945,120]
[392375806,1761407564151,-500.0,0.00547945,120]
[392375807,1761407564162,-500.0,0.00547945,120]
[392375808,1761407564172,-287.25623305,0.00547945,120]
[392375809,1761407564181,-10000.0,0.00549489,120]
[392375810,1761407564190,-5000.0,0.0055,90]
[392375811,1761407564200,-5000.0,0.0055,120]
[392375812,1761407564211,-500.0,0.0055,120]
[392375813,1761407564221,-944.44444444,0.005552,120]
[392375814,1761407564232,-2000.0,0.0056,120]
[392375815,1761407564242,-944.44444444,0.00562633,120]
[392375816,1761407564253,-501.23,0.0056666,60]
[392375817,1761407564264,-2000.0,0.00569,61]
[392375818,1761407564275,-944.44444444,0.00570067,120]
[392375819,1761407564285,-80219.16265166,0.00576678,120]
[392375820,1761407564296,-944.44444444,0.005775,120]
[392375821,1761407564306,-13619.8,0.005788,120]
[392375822,1761407564316,-2000.0,0.0058,120]
[392375823,1761407564327,-4000.0,0.0058,120]
[392375824,1761407564336,-944.44444444,0.00584933,120]
[392375825,1761407564346,-1000.0,0.00588,120]
[392375826,1761407564357,-5983.99199997,0.00588,120]
[392375827,1761407564370,-1730.0,0.005887,120]
[392375828,1761407564380,-1200.0,0.0059,120]
[392375829,1761407564390,-20000.0,0.0059,120]
[392375830,1761407564403,-20635.5768522,0.0059,30]
[392375831,1761407564413,-150.0,0.0059,120]
[392375832,1761407564423,-39762.97719468,0.0059,120]
[392375833,1761407564432,-806.71135603,0.0059,120]
[392375834,1761407564443,-434.47169242,0.0059,120]
[392375835,1761407564454,-41055.97239552,0.0059,120]
[392375836,1761407564464,-151674.16360813,0.0059,120]
[392375837,1761407564473,-1304.5502925,0.00591603,30]
[392375838,1761407564483,-112945.204278,0.00592048,120]
[392375839,1761407564494,-944.44444444,0.00592367,120]
[392375840,1761407564504,-3381.24141114,0.0059601,84]
[392375841,1761407564515,-113102.890419,0.00596199,120]
[392375842,1761407564525,-9996.28514525,0.00598,120]
[392375843,1761407564535,-157414.2939276,0.00598987,120]
[392375844,1761407564545,-944.44444444,0.005998,120]
[392375845,1761407564555,-1000.0,0.0059999,120]
[392375846,1761407564564,-5000.0,0.006,90]
[392375847,1761407564573,-2000.0,0.006,120]
[392375848,1761407564584,-200.0,0.006,120]
[392375849,1761407564594,-11454.3716468,0.006,120]
[392375850,1761407564605,-4000.0,0.006,120]
[392375851,1761407564615,-1000.0,0.006,120]
[392375852,1761407564624,-15000.0,0.006,120]
[392375853,1761407564634,-150.0,0.006,120]
[392375854,1761407564645,-448.0,0.006,120]
[392375855,1761407564654,-152.0,0.006,60]
[392375856,1761407564664,-3669.98,0.006,90]
[392375857,1761407564674,-944.44444444,0.00607233,120]
[392375858,1761407564683,-944.44444444,0.00614667,120]
[392375859,1761407564692,-2000.0,0.0062,120]
[392375860,1761407564702,-944.44444444,0.006221,120]
[392375861,1761407564711,-944.44444444,0.00629533,120]
[392375862,1761407564721,-944.44444444,0.00636967,120]
[392375863,1761407564730,-2000.0,0.0064,120]
[392375864,1761407564740,-2969.07069313,0.0064,120]
[392375865,1761407564750,-944.44444444,0.006444,120]
[392375866,1761407564759,-10996.01561956,0.0065,120]
[392375867,1761407564768,-150.58559167,0.0065,120]
[392375868,1761407564778,-2261890.74375323,0.0065,120]
[392375869,1761407564788,-944.44444444,0.00651833,120]
[392375870,1761407564798,-161.0,0.006538,120]
[392375871,1761407564809,-1500.00062471,0.006539,48]
[392375872,1761407564819,-2000.0,0.00658,63]
[392375873,1761407564829,-944.44444444,0.00659267,120]
[392375874,1761407564839,-2000.0,0.0066,120]
[392375875,1761407564848,-150.0,0.0066,120]
[392375876,1761407564858,-500.0,0.00666,60]
[392375877,1761407564868,-983136.40477317,0.006666,120]
[392375878,1761407564878,-944.44444444,0.006667,120]
[392375879,1761407564887,-417.38844898,0.0067,120]
[392375880,1761407564897,-150.0,0.0067,120]
[392375881,1761407564907,-23302.13230164,0.0067,120]
[392375882,1761407564916,-944.44444444,0.00674133,120]
[392375883,1761407564926,-1000.0,0.00675,2]
[392375884,1761407564935,-16400.0,0.006788,120]
[392375885,1761407564945,-150.0,0.00679,120]
[392375886,1761407564954,-2000.0,0.0068,120]
[392375887,1761407564964,-178.08929793,0.0068,120]
[392375888,1761407564973,-26387.6243928,0.0068,120]
[392375889,1761407564983,-3302.70929663,0.0068,120]
[392375890,1761407564992,-4837.38524691,0.0068,120]
[392375891,1761407565002,-1500000.0,0.0068,120]
[392375892,1761407565011,-150.0,0.0068,120]
[392375893,1761407565022,-5000.0,0.0068,120]
[392375894,1761407565032,-496.52,0.0068,120]
[392375895,1761407565042,-944.44444444,0.00681567,120]
[392375896,1761407565052,-10000.0,0.00684931,120]
[392375897,1761407565061,-45768.88356117,0.006855,120]
[392375898,1761407565072,-549.999999,0.00687,120]
[392375899,1761407565083,-2500.0,0.00689,62]
[392375900,1761407565093,-2000.0,0.00689,62]
[392375901,1761407565102,-944.44444444,0.00689,120]
[392375902,1761407565112,-20000.0,0.006899,120]
[392375903,1761407565122,-150.0,0.0069,120]
[392375904,1761407565131,-150.0,0.0069,120]
[392375905,1761407565140,-150.0,0.0069,120]
[392375906,1761407565150,-150.0,0.0069,120]
[392375907,1761407565159,-150.0,0.0069,120]
[392375908,1761407565169,-150.0,0.0069,120]
[392375909,1761407565179,-150.0,0.0069,120]
[392375910,1761407565188,-150.0,0.0069,120]
[392375911,1761407565198,-2495.54875185,0.0069,120]
[392375912,1761407565208,-6645.38143175,0.0069,120]
[392375913,1761407565217,-150.0,0.0069,120]
[392375914,1761407565227,-56472.602139,0.00691588,120]
[392375915,1761407565237,-56551.4452093,0.00693647,120]
[392375916,1761407565247,-944.44444444,0.00696433,120]
[392375917,1761407565256,-2500.0,0.00698,75]
[392375918,1761407565266,-10002.56042263,0.006987,120]
[392375919,1761407565275,-1000.0,0.00699999,120]
[392375920,1761407565285,-2000.0,0.007,120]
[392375921,1761407565294,-39817.28047139,0.007,120]
[392375922,1761407565304,-5046.13460262,0.007,2]
[392375923,1761407565314,-1210.247326,0.007,120]
[392375924,1761407565323,-10000.0,0.007,120]
[392375925,1761407565334,-10000.0,0.007,120]
[392375926,1761407565343,-10000.0,0.007,120]
[392375927,1761407565353,-10000.0,0.007,120]
[392375928,1761407565363,-10000.0,0.007,120]
[392375929,1761407565376,-10000.0,0.007,120]
[392375930,1761407565386,-10000.0,0.007,120]
[392375931,1761407565396,-10000.0,0.007,120]
[392375932,1761407565406,-8000.0,0.007,120]
[392375933,1761407565419,-200.0,0.007,2]
[392375934,1761407565428,-5000.0,0.007,90]
[392375935,1761407565438,-1197.53668696,0.007,120]
[392375936,1761407565450,-944.44444444,0.00703867,120]
[392375937,1761407565460,-944.44444444,0.007113,120]
[392375938,1761407565470,-1000.0,0.00719999,120]
[392375939,1761407565479,-16400.0,0.0072,120]
[392375940,1761407565489,-2000.0,0.0072,120]
[392375941,1761407565499,-10839.599999,0.0072,120]
[392375942,1761407565510,-944.44444444,0.00726167,120]
[392375943,1761407565520,-1000.0,0.00729999,120]
[392375944,1761407565529,-16400.0,0.0073,120]
[392375945,1761407565540,-10839.6,0.0073,120]
[392375946,1761407565550,-944.44444444,0.007336,120]
[392375947,1761407565560,-10839.6,0.007388,120]
[392375948,1761407565570,-1476.10043659,0.00739516,120]
[392375949,1761407565773,-1000.0,0.00739999,120]
[392375950,1761407565783,-2000.0,0.0074,120]
[392375951,1761407565793,-919.9788312,0.0074,120]
[392375952,1761407565803,-944.44444444,0.00741033,120]
[392375953,1761407565812,-16400.0,0.00743,120]
[392375954,1761407565822,-10839.6,0.00743,120]
[392375955,1761407565832,-2000.0,0.00744,62]
[392375956,1761407565841,-16400.0,0.00747,120]
[392375957,1761407565850,-10839.599999,0.00747,120]
[392375958,1761407565860,-1000.0,0.0074747,120]
[392375959,1761407565870,-944.44444444,0.00748467,120]
[392375960,1761407565879,-1000.0,0.00749999,120]
[392375963,1761407567665,300.0,0.00030536,120]
[392375964,1761407567701,300.0,0.00028508,120]
[392375965,1761407567732,300.0,0.00029005,120]
[392375966,1761407567764,300.0,0.00029005,120]
[392375967,1761407567802,300.0,0.00029005,120]
[392375978,1761407599225,304.54492032,0.00036568,30]
[392376098,1761407885422,300.0,0.00028282,120]
[392376099,1761407885497,300.0,0.00028282,120]
[392376100,1761407885621,300.0,0.00028282,120]
[392376101,1761407885721,300.0,0.00028282,120]
[392376102,1761407885808,300.0,0.00028282,120]
[392376103,1761407905421,3963803.67237864,0.00031507,120]
[392376119,1761408068650,3981.53,0.00040348,60]
[392376129,1761408115655,1000.0,0.00040348,120]
[392376187,1761408488897,-250.0,0.00017,2]
[392376188,1761408561151,-150.0,0.00024201,2]
[392376189,1761408561171,-69.94390984,0.00024201,2]
[392376205,1761408632089,-100.19609016,0.00024201,2]
[392376206,1761408632099,-1170.79045828,0.00024645,2]
[392376207,1761408632108,-430.40188871,0.00026746,2]
[392376208,1761408632117,-160.19045936,0.00028256,2]
[392376209,1761408632127,-150.0,0.00028356,4]
[392376210,1761408632142,-213.20479994,0.00028356,4]
[392376211,1761408632151,-150.0,0.00028356,4]
[392376212,1761408632160,-150.0,0.00028706,7]
[392376213,1761408632170,-300.0,0.00029049,2]
[392376214,1761408632179,-500.0,0.00029049,2]
[392376215,1761408632189,-213.77867006,0.00029049,2]
[392376216,1761408632199,-3610.83370414,0.0002905,2]
[392376217,1761408632212,-2985.07227333,0.0002905,2]
[392376218,1761408632222,-9999.99,0.0002905,2]
[392376219,1761408632233,-150.99,0.0002905,2]
[392376220,1761408632243,-5694.96,0.0002905,2]
[392376221,1761408632252,-150.0,0.00029056,7]
[392376222,1761408632262,-500.0,0.00029073,5]
[392376223,1761408632271,-500.0,0.00029073,5]
[392376224,1761408632282,-516.43133353,0.00029073,5]
[392376225,1761408632292,-453.31092803,0.00029073,5]
[392376226,1761408632302,-500.0,0.00029073,5]
[392376227,1761408632314,-5992.7,0.00029332,2]
[392376228,1761408632323,-4956.53,0.00029333,2]
[392376229,1761408632333,-150.0,0.00029406,7]
[392376230,1761408632343,-1143.59,0.00029483,7]
[392376231,1761408632352,-421.9,0.00029495,2]
[392376232,1761408632363,-3630.42,0.00029495,2]
[392376233,1761408632373,-150.0,0.00029756,7]
[392376234,1761408632382,-151.0,0.00029767,2]
[392376235,1761408632392,-151.0,0.00029767,2]
[392376236,1761408632402,-151.0,0.00029767,2]
[392376237,1761408632411,-151.0,0.00029767,2]
[392376238,1761408632420,-151.0,0.00029767,2]
[392376239,1761408632430,-151.0,0.00029767,2]
[392376240,1761408632440,-151.0,0.00029767,2]
[392376241,1761408632449,-151.0,0.00029767,2]
[392376242,1761408632458,-151.0,0.00029767,2]
[392376243,1761408632467,-151.0,0.00029767,2]
[392376244,1761408632477,-151.0,0.00029767,2]
[392376245,1761408632486,-151.0,0.00029767,2]
[392376246,1761408632497,-151.0,0.00029767,2]
[392376247,1761408632506,-151.0,0.00029767,2]
[392376248,1761408632516,-151.0,0.00029767,2]
[392376249,1761408632526,-151.0,0.00029767,2]
[392376250,1761408632535,-151.0,0.00029767,2]
[392376251,1761408632546,-151.0,0.00029767,2]
[392376253,1761408632555,-151.0,0.00029767,2]
[392376255,1761408632564,-151.0,0.00029767,2]
[392376257,1761408632574,-246.29,0.00029794,120]
[392376259,1761408632583,-1942.73,0.00029815,2]
[392376261,1761408632592,-838.56,0.00029901,2]
[392376263,1761408632601,-1497.22,0.00029991,2]
[392376265,1761408632610,-1847.94,0.00029991,2]
[392376267,1761408632619,-150.0,0.00030107,7]
[392376269,1761408632628,-171.85,0.00030137,30]
[392376272,1761408632637,-7173.97841646,0.00030334,2]
[392376275,1761408632646,-150.0,0.00030457,7]
[392376278,1761408632654,-168.0,0.00030564,2]
[392376280,1761408632664,-168.0,0.00030734,2]
[392376282,1761408632673,-150.0,0.00030807,7]
[392376284,1761408632682,-168.0,0.00030816,2]
[392376287,1761408632691,-838.56,0.00031022,2]
[392376290,1761408632701,-1000.0,0.00031088,2]
[392376292,1761408632710,-5399.00781416,0.00031152,2]
[392376294,1761408632718,-150.0,0.00031157,7]
[392376296,1761408632727,-160.0,0.00031339,2]
[392376298,1761408632736,-325.50996704,0.000314,2]
[392376300,1761408632746,-325.50996701,0.00031401,2]
[392376302,1761408632755,-325.50996701,0.00031402,2]
[392376304,1761408632764,-325.50996701,0.00031403,2]
[392376306,1761408632773,-325.50996701,0.00031404,2]
[392376308,1761408632782,-325.50996701,0.00031405,2]
[392376310,1761408632791,-325.50996701,0.00031406,2]
[392376312,1761408632800,-1642.87944143,0.00031407,2]
[392376314,1761408632808,-1642.87944142,0.00031407,2]
[392376316,1761408632819,-279.1196,0.00031407,2]
[392376318,1761408632827,-164.56047041,0.00031407,2]
[392376320,1761408632837,-1102.22435754,0.00031407,2]
[392376322,1761408632846,-325.50996701,0.00031407,2]
[392376324,1761408632855,-18071.99244587,0.00031497,2]
[392376326,1761408632867,-3998.90092916,0.00031497,2]
[392376328,1761408632877,-4311.29809261,0.00031497,2]
[392376351,1761408637946,-1704.47184068,0.00031497,2]
[392376352,1761408637958,-2506.09710681,0.00031497,2]
[392376353,1761408637968,-2343.46774871,0.00031497,2]
[392376354,1761408638058,-7316.89778967,0.00031497,2]
[392376355,1761408638089,-2228.61744387,0.00031497,2]
[392376356,1761408638168,-1721.97149466,0.00031497,2]
[392376384,1761408640102,-1514.59712144,0.00031497,2]
[392376385,1761408640168,-581.63690954,0.00031497,2]
[392376386,1761408640229,-299.97,0.00031497,2]
[392376387,1761408640419,-13752.11167566,0.00031497,2]
[392376388,1761408640434,-24077.97030971,0.00031497,2]
[392376389,1761408640450,-9543.74710436,0.00031497,2]
[392376390,1761408640478,-2165.69474506,0.00031497,2]
[392376394,1761408644318,-1378.24524389,0.00031497,2]
[392376415,1761408644646,-115958.3539193,0.00031497,2]
[392376416,1761408644656,-220454.786406,0.00031497,2]
[392376417,1761408644667,-150.48,0.00031497,2]
[392376418,1761408644677,-150.48,0.00031497,2]
[392376419,1761408644688,-150.48,0.00031497,2]
[392376420,1761408644697,-150.48,0.00031497,2]
[392376421,1761408644710,-150.48,0.00031497,2]
[392376422,1761408644719,-150.48,0.00031497,2]
[392376423,1761408644729,-150.48,0.00031497,2]
[392376424,1761408644738,-150.48,0.00031497,2]
[392376425,1761408644747,-150.48,0.00031497,2]
[392376426,1761408644756,-150.48,0.00031497,2]
[392376427,1761408644765,-150.48,0.00031497,2]
[392376428,1761408644776,-150.48,0.00031497,2]
[392376429,1761408644786,-150.48,0.00031497,2]
[392376430,1761408644796,-150.48,0.00031497,2]
[392376431,1761408644807,-150.48,0.00031497,2]
[392376432,1761408644816,-150.48,0.00031497,2]
[392376433,1761408644827,-150.48,0.00031497,2]
[392376434,1761408644836,-150.48,0.00031497,2]
[392376435,1761408644846,-150.48,0.00031497,2]
[392376436,1761408644856,-150.48,0.00031497,2]
[392376437,1761408644865,-150.48,0.00031497,2]
[392376438,1761408644874,-150.48,0.00031497,2]
[392376439,1761408644883,-150.48,0.00031497,2]
[392376440,1761408644893,-150.48,0.00031497,2]
[392376441,1761408644902,-150.48,0.00031497,2]
[392376442,1761408644911,-150.48,0.00031497,2]
[392376443,1761408644920,-150.48,0.00031497,2]
[392376444,1761408644928,-150.48,0.00031497,2]
[392376445,1761408644938,-150.48,0.00031497,2]
[392376446,1761408644946,-150.48,0.00031497,2]
[392376447,1761408644955,-150.48,0.00031497,2]
[392376448,1761408644964,-150.48,0.00031497,2]
[392376449,1761408644973,-150.48,0.00031497,2]
[392376450,1761408644983,-150.48,0.00031497,2]
[392376451,1761408644992,-150.48,0.00031497,2]
[392376453,1761408645001,-150.48,0.00031497,2]
[392376454,1761408645010,-150.48,0.00031497,2]
[392376455,1761408645020,-150.48,0.00031497,2]
[392376456,1761408645029,-150.48,0.00031497,2]
[392376457,1761408645039,-150.48,0.00031497,2]
[392376458,1761408645048,-150.48,0.00031497,2]
[392376459,1761408645058,-150.48,0.00031497,2]
[392376460,1761408645067,-150.48,0.00031497,2]
[392376461,1761408645076,-150.48,0.00031497,2]
[392376462,1761408645085,-150.48,0.00031497,2]
[392376463,1761408645094,-150.48,0.00031497,2]
[392376464,1761408645105,-150.48,0.00031497,2]
[392376465,1761408645114,-150.48,0.00031497,2]
[392376466,1761408645123,-297.12,0.00031497,14]
[392376467,1761408645132,-5800.0,0.000315,2]
[392376468,1761408645141,-1940.50755626,0.000315,7]
[392376469,1761408645150,-500.0,0.00031506,9]
[392376470,1761408645160,-500.0,0.00031506,9]
[392376471,1761408645169,-506.18878021,0.00031506,9]
[392376472,1761408645180,-1244073.61574962,0.00031507,120]
[392376473,1761408645193,-786.0,0.00031507,120]
[392376475,1761408646463,-333.77738069,0.00031507,120]
[392376642,1761408904337,164.01,0.00013699,2]
[392376654,1761408973324,190.73,0.00016712,2]
[392376764,1761409508078,7895.26,0.00015,2]
[392376765,1761409508104,5000.0,0.00015,2]
[392376766,1761409508135,154.18395501,0.00015,2]
[392376767,1761409508159,5000.0,0.00015,2]
[392376768,1761409508188,96767.55604499,0.00015,2]
[392376769,1761409510495,5702.50129093,0.00040315,30]
[392376770,1761409513979,648756.20906557,0.00040315,30]
[392376771,1761409514407,60479.41658079,0.00040315,30]
[392376783,1761409517752,6306.85330555,0.00040315,30]
[392376787,1761409527070,574601.33729922,0.00040315,30]
[392376788,1761409528314,11849.74734178,0.00040315,30]
[392376789,1761409542228,15120.99889876,0.00040315,30]
[392376798,1761409567915,3032.71096627,0.000199,3]
[392376799,1761409578605,797.66899704,0.000209,30]
[392376807,1761409590207,2900.0,0.000225,15]
[392376812,1761409601643,-162.88,0.00015231,2]
[392376816,1761409617244,5617.75309242,0.000162,5]
[392376829,1761409636386,1448.22598711,0.0002,5]
[392376846,1761409663012,13014.65873001,0.0002,5]
[392376896,1761409710244,17611.56526399,0.00040315,30]
[392376897,1761409710558,17777.11556239,0.00040315,30]
[392376925,1761409717430,7222.82963813,0.0002,5]
[392376926,1761409718592,11455.64399897,0.00040315,30]
[392376928,1761409721091,495619.97637948,0.00040315,30]
[392376933,1761409724349,165.0,0.00023,5]
[392376942,1761409746133,-162.88,0.00016754,2]
[392376943,1761409746153,-2864.00542275,0.00018,2]
[392376944,1761409746174,-162.88,0.00018277,2]
[392376945,1761409746195,-162.88,0.000198,2]
[392376946,1761409746466,-162.88,0.00021323,2]
[392376947,1761409746488,-162.88,0.00022846,2]
[392377052,1761409832063,-151.0,0.00023161,2]
[392377055,1761409832073,-150.0,0.00023161,2]
[392377056,1761409832082,-162.88,0.00024369,2]
[392377057,1761409832091,-1885.70576673,0.00025,7]
[392377058,1761409832100,-162.88,0.00025892,2]
[392377059,1761409832110,-162.88,0.00027415,2]
[392377060,1761409832120,-226.20635545,0.000279,2]
[392377061,1761409832129,-12441.23865247,0.00028,2]
[392377062,1761409832228,-28921.64266108,0.00028,2]
[392377063,1761409832241,-14370.05029096,0.00028,2]
[392377064,1761409832251,-150.0,0.00028356,4]
[392377065,1761409832260,-162.88,0.00028938,2]
[392377066,1761409832270,-9999.99,0.00029009,2]
[392377067,1761409832279,-150.99,0.00029009,2]
[392377068,1761409832288,-164.01,0.0002911,2]
[392377069,1761409832302,-1000.0,0.00029583,2]
[392377070,1761409832312,-1852.42,0.00029739,2]
[392377071,1761409832322,-1532.8,0.00029878,2]
[392377072,1761409832331,-162.88,0.00030461,2]
[392377073,1761409832342,-1744.75,0.00030482,2]
[392377074,1761409832351,-150.0,0.00030495,2]
[392377075,1761409832360,-150.0,0.00030495,120]
[392377076,1761409832370,-2871.0,0.00030544,2]
[392377077,1761409832380,-154.69191,0.0003119,2]
[392377078,1761409832390,-639.60311538,0.00031242,2]
[392377080,1761409832400,-20000.0,0.00031294,5]
[392377082,1761409832409,-152.64948861,0.00031307,2]
[392377084,1761409832418,-152.6494886,0.0003134,2]
[392377085,1761409832427,-152.6494886,0.00031374,2]
[392377087,1761409832437,-1351.13911413,0.00031388,2]
[392377089,1761409832447,-1351.13911404,0.0003139,2]
[392377091,1761409832456,-1351.13911404,0.00031392,2]
[392377093,1761409832465,-1351.13911404,0.00031394,2]
[392377095,1761409832474,-1351.13911404,0.00031396,2]
[392377097,1761409832486,-470.64,0.00031397,2]
[392377099,1761409832499,-160.02458894,0.00031397,15]
[392377101,1761409832508,-470.64,0.00031397,2]
[392377103,1761409832517,-1351.13911404,0.00031399,2]
[392377105,1761409832526,-1351.13911404,0.00031401,2]
[392377107,1761409832535,-1351.13911404,0.00031403,2]
[392377109,1761409832545,-1351.13911404,0.00031405,2]
[392377111,1761409832555,-5000.0,0.00031407,2]
[392377112,1761409832564,-5132.39909645,0.00031407,2]
[392377121,1761409838098,-28048.47440355,0.00031407,2]
[392377122,1761409838108,-1000.0,0.00031407,120]
[392377123,1761409838117,-1000.0,0.00031407,2]
[392377124,1761409838127,-7335.4907,0.00031407,2]
[392377125,1761409838136,-1000.0,0.00031407,2]
[392377126,1761409838145,-2500.0,0.00031407,2]
[392377127,1761409838155,-192974.5116,0.00031407,2]
[392377128,1761409838164,-20503.87274094,0.00031407,2]
[392377129,1761409838173,-1351.13911404,0.00031407,2]
[392377130,1761409838183,-152.6494886,0.00031407,2]
[392377131,1761409838196,-470.64,0.00031487,2]
[392377132,1761409838205,-470.64,0.00031487,2]
[392377133,1761409838215,-470.64,0.00031487,2]
[392377134,1761409838224,-198.08,0.00031488,14]
[392377148,1761409838234,-151.0,0.00031488,2]
[392377150,1761409838452,-151.0,0.00031488,2]
[392377152,1761409838462,-151.0,0.00031488,2]
[392377154,1761409838471,-151.0,0.00031488,2]
[392377156,1761409838481,-151.0,0.00031488,2]
[392377158,1761409838490,-151.0,0.00031488,2]
[392377161,1761409838505,-151.0,0.00031488,2]
[392377164,1761409838519,-151.0,0.00031488,2]
[392377166,1761409838529,-151.0,0.00031488,2]
[392377168,1761409838539,-151.0,0.00031488,2]
[392377170,1761409838551,-151.0,0.00031488,2]
[392377172,1761409838561,-151.0,0.00031488,2]
[392377174,1761409838572,-151.0,0.00031488,2]
[392377176,1761409838581,-151.0,0.00031488,2]
[392377178,1761409838591,-151.0,0.00031488,2]
[392377180,1761409838601,-151.0,0.00031488,2]
[392377182,1761409838611,-151.0,0.00031488,2]
[392377184,1761409838620,-151.0,0.00031488,2]
[392377187,1761409838631,-151.0,0.00031488,2]
[392377189,1761409838641,-151.0,0.00031488,2]
[392377191,1761409838650,-151.0,0.00031488,2]
[392377193,1761409838661,-151.0,0.00031488,2]
[392377195,1761409838673,-151.0,0.00031488,2]
[392377197,1761409838683,-151.0,0.00031488,2]
[392377199,1761409838692,-151.0,0.00031488,2]
[392377200,1761409838702,-151.0,0.00031488,2]
[392377201,1761409838713,-151.0,0.00031488,2]
[392377202,1761409838725,-151.0,0.00031488,2]
[392377203,1761409838734,-151.0,0.00031488,2]
[392377204,1761409838744,-151.0,0.00031488,2]
[392377205,1761409838753,-151.0,0.00031488,2]
[392377206,1761409838763,-200.63830546,0.00031488,2]
[392377207,1761409838772,-500.0,0.00031496,9]
[392377208,1761409838782,-185071.02270511,0.00031497,3]
[392377210,1761409840152,-516.30827075,0.00031497,3]
[392377216,1761409843235,-387.771556,0.00031497,3]
[392377217,1761409843280,-793.39062848,0.00031497,3]
[392377218,1761409843350,-7262.56866066,0.00031497,3]